fUSD/lending_fUSD_20260529
["ID","MTS","AMOUNT","RATE_DAILY","PERIOD"]
[423322119,1780056644000,-500.0,0.00020358,2]
[423322117,1780056644000,-151.0,0.00020311,2]
[423322120,1780056644000,-507.98,0.00020358,2]
[423322116,1780056644000,-151.0,0.00020256,2]
[423322107,1780056644000,-200.0,0.00020036,2]
[423322114,1780056644000,-151.0,0.00020201,2]
[423322112,1780056644000,-151.0,0.00020146,2]
[423322113,1780056644000,-1259.39874542,0.00020196,2]
[423322109,1780056644000,-344.73761073,0.00020091,2]
[423322121,1780056644000,-500.0,0.00020358,2]
[423322115,1780056644000,-2051.009111,0.00020206,2]
[423322123,1780056644000,-3201.0,0.00020358,5]
[423322136,1780056644000,-150.0,0.00020768,2]
[423322122,1780056644000,-3998.0,0.00020358,5]
[423322126,1780056644000,-151.0,0.00020421,2]
[423322125,1780056644000,-4414.4,0.00020381,2]
[423322127,1780056644000,-151.0,0.00020476,2]
[423322128,1780056644000,-151.0,0.00020531,2]
[423322129,1780056644000,-181.08010149,0.00020584,2]
[423322131,1780056644000,-2157.14243826,0.00020584,2]
[423322130,1780056644000,-1481.2378076,0.00020584,2]
[423322132,1780056644000,-200.0,0.00020584,2]
[423322133,1780056644000,-151.0,0.00020586,2]
[423322134,1780056644000,-2000.0,0.00020628,2]
[423322135,1780056644000,-2000.0,0.00020628,2]
[423322110,1780056644000,-151.0,0.00020091,2]
[423322124,1780056644000,-151.0,0.00020366,2]
[423322108,1780056644000,-152.0,0.00020036,2]
[423322079,1780056644000,-151.0,0.00020036,2]
[423322106,1780056644000,-152.0,0.00020036,2]
[423322078,1780056644000,-500.0,0.00020036,2]
[423322080,1780056644000,-151.0,0.00020036,2]
[423322137,1780056644000,-150.0,0.00020768,2]
[423322082,1780056644000,-500.0,0.00020036,2]
[423322081,1780056644000,-286.14099624,0.00020036,2]
[423322083,1780056644000,-152.0,0.00020036,2]
[423322084,1780056644000,-151.0,0.00020036,2]
[423322085,1780056644000,-151.0,0.00020036,2]
[423322087,1780056644000,-500.0,0.00020036,2]
[423322090,1780056644000,-151.0,0.00020036,2]
[423322091,1780056644000,-307.70715698,0.00020036,2]
[423322088,1780056644000,-152.0,0.00020036,2]
[423322086,1780056644000,-296.7282131,0.00020036,2]
[423322111,1780056644000,-300.0,0.000201,10]
[423322089,1780056644000,-151.0,0.00020036,2]
[423322093,1780056644000,-152.0,0.00020036,2]
[423322094,1780056644000,-151.0,0.00020036,2]
[423322097,1780056644000,-319.09232179,0.00020036,2]
[423322096,1780056644000,-500.0,0.00020036,2]
[423322095,1780056644000,-151.0,0.00020036,2]
[423322098,1780056644000,-152.0,0.00020036,2]
[423322099,1780056644000,-151.0,0.00020036,2]
[423322100,1780056644000,-151.0,0.00020036,2]
[423322102,1780056644000,-152.0,0.00020036,2]
[423322101,1780056644000,-500.0,0.00020036,2]
[423322103,1780056644000,-151.0,0.00020036,2]
[423322104,1780056644000,-151.0,0.00020036,2]
[423322105,1780056644000,-500.0,0.00020036,2]
[423322092,1780056644000,-500.0,0.00020036,2]
[423322139,1780056644000,-223.666255,0.00020821,2]
[423322140,1780056644000,-904.0,0.00021,2]
[423322138,1780056644000,-1356.0,0.00020768,2]
[423322175,1780056644000,-3983.55,0.00022,2]
[423322174,1780056644000,-896.0,0.00022,2]
[423322177,1780056644000,-697.0,0.00022,2]
[423322176,1780056644000,-835.0,0.00022,2]
[423322179,1780056644000,-331.46338868,0.00022228,2]
[423322178,1780056644000,-2043.0,0.00022,2]
[423322180,1780056644000,-1651.81367706,0.00022228,2]
[423322183,1780056644000,-200.0,0.00022289,2]
[423322181,1780056644000,-2405.55389863,0.00022228,2]
[423322182,1780056644000,-200.0,0.00022228,2]
[423322184,1780056644000,-4414.4,0.00022353,2]
[423322186,1780056644000,-958.82,0.00022466,2]
[423322187,1780056644000,-748.22,0.00022466,2]
[423322185,1780056644000,-355.0,0.00022453,7]
[423322188,1780056644000,-1259.39874542,0.00022536,2]
[423322189,1780056644000,-646.40944377,0.00022701,2]
[423322191,1780056644000,-747.80937859,0.00022775,2]
[423322193,1780056644000,-2494.55939288,0.00022776,2]
[423322194,1780056644000,-200.0,0.00022776,2]
[423322190,1780056644000,-599.60298507,0.00022775,2]
[423322196,1780056644000,-500.0,0.00022899,2]
[423322192,1780056644000,-1712.93078311,0.00022776,2]
[423322141,1780056644000,-5338.0,0.00021,2]
[423322197,1780056644000,-140942.0,0.000229,2]
[423322198,1780056644000,-938.618,0.00022961,2]
[423322199,1780056644000,-1225.0,0.00022961,2]
[423322200,1780056644000,-904.0,0.00023,2]
[423322171,1780056644000,-1042.0,0.00022,2]
[423322170,1780056644000,-823.0,0.00022,2]
[423322195,1780056644000,-612.29,0.00022899,2]
[423322173,1780056644000,-2182.0,0.00022,2]
[423322169,1780056644000,-450.0,0.00022,2]
[423322143,1780056644000,-823.0,0.00021,2]
[423322144,1780056644000,-1042.0,0.00021,2]
[423322148,1780056644000,-835.0,0.00021,2]
[423322145,1780056644000,-731.0,0.00021,2]
[423322146,1780056644000,-2182.0,0.00021,2]
[423322147,1780056644000,-896.0,0.00021,2]
[423322150,1780056644000,-2043.0,0.00021,2]
[423322149,1780056644000,-697.0,0.00021,2]
[423322151,1780056644000,-187.78006524,0.00021132,2]
[423322153,1780056644000,-2236.95670847,0.00021132,2]
[423322152,1780056644000,-1536.04360648,0.00021132,2]
[423322155,1780056644000,-5645.69928717,0.00021147,2]
[423322154,1780056644000,-200.0,0.00021132,2]
[423322142,1780056644000,-1827.9724626,0.00021,2]
[423322156,1780056644000,-1482.19,0.000214,7]
[423322158,1780056644000,-194.72792766,0.0002168,2]
[423322168,1780056644000,-5338.0,0.00022,2]
[423322165,1780056644000,-1006.5,0.00021918,2]
[423322166,1780056644000,-298.25,0.00021918,2]
[423322164,1780056644000,-5000.0,0.00021918,2]
[423322167,1780056644000,-904.0,0.00022,2]
[423322162,1780056644000,-18986.26,0.00021774,2]
[423322159,1780056644000,-1592.87721992,0.0002168,2]
[423322163,1780056644000,-284.48929382,0.00021855,2]
[423322160,1780056644000,-2319.72410669,0.0002168,2]
[423322172,1780056644000,-731.0,0.00022,2]
[423322157,1780056644000,-646.40944377,0.00021526,2]
[423322161,1780056644000,-200.0,0.0002168,2]
[423322237,1780056645000,-738.79598337,0.00024,2]
[423322230,1780056645000,-280.0,0.00023895,2]
[423322229,1780056645000,-646.40944377,0.00023875,2]
[423322232,1780056645000,-219.0,0.00023895,2]
[423322235,1780056645000,-823.0,0.00024,2]
[423322231,1780056645000,-150.0,0.00023895,2]
[423322234,1780056645000,-5338.0,0.00024,2]
[423322233,1780056645000,-904.0,0.00024,2]
[423322238,1780056645000,-2182.0,0.00024,2]
[423322227,1780056645000,-2682.57183977,0.00023872,2]
[423322236,1780056645000,-1042.0,0.00024,2]
[423322246,1780056645000,-500.0,0.00024383,30]
[423322241,1780056645000,-697.0,0.00024,2]
[423322240,1780056645000,-835.0,0.00024,2]
[423322243,1780056645000,-5531.0,0.000242,5]
[423322242,1780056645000,-2043.0,0.00024,2]
[423322244,1780056645000,-4414.4,0.00024324,2]
[423322245,1780056645000,-500.0,0.00024383,30]
[423322247,1780056645000,-500.0,0.00024383,30]
[423322249,1780056645000,-2781.82699784,0.0002442,2]
[423322248,1780056645000,-500.0,0.00024383,30]
[423322228,1780056645000,-200.0,0.00023872,2]
[423322239,1780056645000,-896.0,0.00024,2]
[423322225,1780056645000,-401.69008289,0.00023816,2]
[423322212,1780056645000,-835.0,0.00023,2]
[423322224,1780056645000,-155.51,0.000238,7]
[423322251,1780056645000,-5645.69928717,0.00024585,2]
[423322202,1780056645000,-1000.0,0.00023,20]
[423322201,1780056645000,-5338.0,0.00023,2]
[423322204,1780056645000,-2500.0,0.00023,20]
[423322210,1780056645000,-2182.0,0.00023,2]
[423322206,1780056645000,-2500.0,0.00023,20]
[423322205,1780056645000,-823.0,0.00023,2]
[423322203,1780056645000,-2500.0,0.00023,20]
[423322207,1780056645000,-1042.0,0.00023,2]
[423322208,1780056645000,-2151.0,0.00023,2]
[423322209,1780056645000,-731.0,0.00023,2]
[423322211,1780056645000,-896.0,0.00023,2]
[423322215,1780056645000,-200.0,0.00023079,2]
[423322216,1780056645000,-1546.49475746,0.00023324,2]
[423322213,1780056645000,-697.0,0.00023,2]
[423322214,1780056645000,-2043.0,0.00023,2]
[423322217,1780056645000,-2586.85809042,0.00023324,2]
[423322218,1780056645000,-200.0,0.00023324,2]
[423322222,1780056645000,-150.30096206,0.00023711,7]
[423322219,1780056645000,-2000.0,0.00023431,2]
[423322220,1780056645000,-14417.56,0.00023549,2]
[423322221,1780056645000,-5531.0,0.000236,3]
[423322223,1780056645000,-1356.0,0.00023768,2]
[423322226,1780056645000,-200.0,0.00023869,2]
[423322252,1780056645000,-298.25,0.00024658,6]
[423322265,1780056645000,-821.3,0.00024886,7]
[423322254,1780056645000,-1000.0,0.00024658,2]
[423322280,1780056645000,-392.02,0.00025,2]
[423322283,1780056645000,-392.02,0.00025,2]
[423322282,1780056645000,-392.02,0.00025,2]
[423322284,1780056645000,-392.02,0.00025,2]
[423322285,1780056645000,-392.02,0.00025,2]
[423322286,1780056645000,-392.02,0.00025,2]
[423322287,1780056645000,-392.02,0.00025,2]
[423322288,1780056645000,-392.02,0.00025,2]
[423322292,1780056645000,-566.33000458,0.0002505,2]
[423322290,1780056645000,-646.40944377,0.00025049,2]
[423322296,1780056645000,-583.66,0.00025115,30]
[423322298,1780056645000,-821.3,0.00025115,30]
[423322301,1780056645000,-821.3,0.00025343,2]
[423322299,1780056645000,-583.66,0.00025343,2]
[423322325,1780056645000,-200.0,0.0002545,2]
[423322329,1780056645000,-200.0,0.00025516,2]
[423322326,1780056645000,-621.78829552,0.00025514,2]
[423322327,1780056645000,-775.4783256,0.00025514,2]
[423322328,1780056645000,-2991.49051684,0.00025516,2]
[423322332,1780056645000,-1590.0,0.00025582,3]
[423322331,1780056645000,-821.3,0.00025572,7]
[423322330,1780056645000,-583.66,0.00025572,7]
[423322250,1780056645000,-200.0,0.0002442,2]
[423322281,1780056645000,-392.02,0.00025,2]
[423322279,1780056645000,-2046.0,0.00025,2]
[423322294,1780056645000,-996.0,0.00025082,2]
[423322275,1780056645000,-2196.0,0.00025,2]
[423322278,1780056645000,-712.0,0.00025,2]
[423322253,1780056645000,-767.22,0.00024658,2]
[423322256,1780056645000,-821.3,0.00024658,2]
[423322259,1780056645000,-5000.0,0.00024663,2]
[423322257,1780056645000,-200.0,0.0002466,2]
[423322258,1780056645000,-5275.76938366,0.00024663,2]
[423322260,1780056645000,-5000.0,0.00024663,2]
[423322262,1780056645000,-5000.0,0.00024663,2]
[423322261,1780056645000,-5000.0,0.00024663,2]
[423322263,1780056645000,-1259.39874542,0.00024877,2]
[423322264,1780056645000,-583.66,0.00024886,7]
[423322333,1780056645000,-2367.0,0.00025582,3]
[423322255,1780056645000,-583.66,0.00024658,2]
[423322277,1780056645000,-845.0,0.00025,2]
[423322268,1780056645000,-200.0,0.00024968,2]
[423322267,1780056645000,-2884.75459676,0.00024968,2]
[423322270,1780056645000,-215.5484138,0.00025,7]
[423322271,1780056645000,-919.26087713,0.00025,2]
[423322269,1780056645000,-215.5484138,0.00025,30]
[423322273,1780056645000,-841.0,0.00025,2]
[423322272,1780056645000,-5354.0,0.00025,2]
[423322274,1780056645000,-1048.0,0.00025,2]
[423322276,1780056645000,-913.0,0.00025,2]
[423322266,1780056645000,-155.51,0.000249,7]
[423322372,1780056646000,-996.0,0.00027301,4]
[423322370,1780056646000,-214.83591502,0.000273,30]
[423322369,1780056646000,-1259.39874542,0.00027218,2]
[423322368,1780056646000,-1235.16,0.000271,14]
[423322367,1780056646000,-200.0,0.00027031,2]
[423322360,1780056646000,-996.0,0.00026746,3]
[423322366,1780056646000,-821.3,0.00026943,7]
[423322364,1780056646000,-1356.0,0.00026768,2]
[423322362,1780056646000,-612.29,0.00026767,2]
[423322374,1780056646000,-507.98,0.00027396,2]
[423322365,1780056646000,-583.66,0.00026943,7]
[423322377,1780056646000,-574.58950557,0.00027397,30]
[423322385,1780056646000,-300.0,0.00027397,2]
[423322373,1780056646000,-500.0,0.00027396,2]
[423322375,1780056646000,-500.0,0.00027396,2]
[423322371,1780056646000,-249.17,0.000273,14]
[423322378,1780056646000,-541.56329746,0.00027397,2]
[423322379,1780056646000,-2270.93149805,0.00027397,2]
[423322381,1780056646000,-1500.0,0.00027397,2]
[423322380,1780056646000,-224.76907207,0.00027397,2]
[423322383,1780056646000,-500.7,0.00027397,2]
[423322382,1780056646000,-298.25,0.00027397,15]
[423322384,1780056646000,-150.0,0.00027397,7]
[423322363,1780056646000,-500.0,0.00026767,2]
[423322376,1780056646000,-646.40944377,0.00027397,2]
[423322361,1780056646000,-1055.74,0.00026754,7]
[423322335,1780056646000,-167.20207427,0.000258,7]
[423322358,1780056646000,-583.66,0.00026714,2]
[423322387,1780056646000,-767.22,0.00027397,2]
[423322334,1780056646000,-996.0,0.00025637,2]
[423322336,1780056646000,-583.66,0.000258,30]
[423322337,1780056646000,-821.3,0.000258,30]
[423322340,1780056646000,-583.66,0.00026029,2]
[423322339,1780056646000,-1225.0,0.00025961,2]
[423322343,1780056646000,-155.51,0.000262,7]
[423322338,1780056646000,-1590.0,0.00025902,3]
[423322342,1780056646000,-996.0,0.00026192,3]
[423322341,1780056646000,-821.3,0.00026029,2]
[423322344,1780056646000,-646.40944377,0.00026223,2]
[423322359,1780056646000,-821.3,0.00026714,2]
[423322347,1780056646000,-583.66,0.00026257,7]
[423322345,1780056646000,-1268.60898689,0.00026234,2]
[423322348,1780056646000,-821.3,0.00026257,7]
[423322349,1780056646000,-4414.4,0.00026296,2]
[423322350,1780056646000,-2051.009111,0.00026314,2]
[423322352,1780056646000,-583.66,0.00026486,30]
[423322354,1780056646000,-1055.74,0.00026487,7]
[423322351,1780056646000,-1055.74,0.00026353,7]
[423322353,1780056646000,-821.3,0.00026486,30]
[423322355,1780056646000,-163.0,0.00026542,3]
[423322357,1780056646000,-1809.85,0.00026621,7]
[423322356,1780056646000,-1055.74,0.00026621,7]
[423322346,1780056646000,-200.0,0.0002624,2]
[423322388,1780056646000,-45267.49,0.00027397,10]
[423322386,1780056646000,-1000.0,0.00027397,20]
[423322391,1780056646000,-26196.47,0.00027397,10]
[423322424,1780056646000,-1052.96189593,0.00027519,5]
[423322426,1780056646000,-1121.62386112,0.00027519,5]
[423322428,1780056646000,-1031.76162564,0.00027519,5]
[423322427,1780056646000,-1061.23934448,0.00027519,5]
[423322429,1780056646000,-1147.1274795,0.00027519,5]
[423322431,1780056646000,-1047.2962689,0.00027519,5]
[423322430,1780056646000,-1021.26399359,0.00027519,5]
[423322437,1780056646000,-1042.76302171,0.00027519,5]
[423322434,1780056646000,-1027.86324518,0.00027519,5]
[423322432,1780056646000,-1010.45498653,0.00027519,5]
[423322436,1780056646000,-1025.8700727,0.00027519,5]
[423322433,1780056646000,-1013.8483693,0.00027519,5]
[423322435,1780056646000,-1137.09095497,0.00027519,5]
[423322440,1780056646000,-150.0,0.00027521,2]
[423322438,1780056646000,-1017.88435949,0.00027519,5]
[423322439,1780056646000,-1052.28472487,0.00027519,5]
[423322441,1780056646000,-4091.61,0.0002755,30]
[423322443,1780056646000,-6425.53,0.0002755,30]
[423322448,1780056646000,-389.1,0.00027552,2]
[423322444,1780056646000,-1923.23,0.0002755,30]
[423322442,1780056646000,-8393.79,0.0002755,30]
[423322445,1780056646000,-2868.86,0.0002755,30]
[423322449,1780056646000,-3000.0,0.00027559,30]
[423322447,1780056646000,-547.53,0.00027551,2]
[423322389,1780056646000,-37722.91,0.00027397,10]
[423322421,1780056646000,-1138.30611186,0.00027519,5]
[423322418,1780056646000,-1140.5593806,0.00027519,5]
[423322446,1780056646000,-5174.22,0.0002755,30]
[423322422,1780056646000,-1096.83110987,0.00027519,5]
[423322390,1780056646000,-31435.76,0.00027397,10]
[423322392,1780056646000,-50339.39,0.000274,14]
[423322393,1780056646000,-3699.58,0.000274,7]
[423322398,1780056646000,-1106.64,0.00027519,7]
[423322397,1780056646000,-1171.52,0.00027519,7]
[423322399,1780056646000,-1208.56,0.00027519,7]
[423322395,1780056646000,-150.0,0.00027415,22]
[423322425,1780056646000,-1036.83780481,0.00027519,5]
[423322396,1780056646000,-10000.0,0.0002745,2]
[423322400,1780056646000,-901.03,0.00027519,7]
[423322401,1780056646000,-1012.24753387,0.00027519,5]
[423322402,1780056646000,-1052.09963161,0.00027519,5]
[423322394,1780056646000,-6580.74,0.000274,7]
[423322406,1780056646000,-1135.42786682,0.00027519,5]
[423322403,1780056646000,-1016.47635133,0.00027519,5]
[423322419,1780056646000,-1111.75269639,0.00027519,5]
[423322420,1780056646000,-1138.05183766,0.00027519,5]
[423322416,1780056646000,-1012.05889852,0.00027519,5]
[423322415,1780056646000,-1103.29087862,0.00027519,5]
[423322423,1780056646000,-1064.4939201,0.00027519,5]
[423322411,1780056646000,-1033.23823391,0.00027519,5]
[423322404,1780056646000,-1048.59885556,0.00027519,5]
[423322409,1780056646000,-1145.70467049,0.00027519,5]
[423322405,1780056646000,-1046.57588216,0.00027519,5]
[423322407,1780056646000,-1095.69806042,0.00027519,5]
[423322413,1780056646000,-1087.15996806,0.00027519,5]
[423322488,1780056647000,-756.27771177,0.00027834,2]
[423322487,1780056647000,-1058.78879648,0.00027834,2]
[423322486,1780056647000,-547.53,0.00027825,2]
[423322485,1780056647000,-389.1,0.00027825,2]
[423322482,1780056647000,-1519.0,0.00027807,30]
[423322483,1780056647000,-192.0,0.00027807,30]
[423322481,1780056647000,-181.50665082,0.00027805,30]
[423322480,1780056647000,-389.1,0.00027795,30]
[423322479,1780056647000,-547.53,0.00027794,30]
[423322484,1780056647000,-200.0,0.00027821,2]
[423322489,1780056647000,-547.53,0.00027855,7]
[423322503,1780056647000,-1200.0,0.000279,10]
[423322491,1780056647000,-389.1,0.00027856,7]
[423322493,1780056647000,-8393.79,0.00027872,2]
[423322492,1780056647000,-4091.61,0.00027872,2]
[423322494,1780056647000,-6425.53,0.00027872,2]
[423322496,1780056647000,-2868.86,0.00027872,2]
[423322495,1780056647000,-1923.23,0.00027872,2]
[423322498,1780056647000,-2582.98833175,0.00027885,2]
[423322499,1780056647000,-1844.99166554,0.00027885,2]
[423322501,1780056647000,-547.53,0.00027886,30]
[423322500,1780056647000,-389.1,0.00027886,30]
[423322497,1780056647000,-5174.22,0.00027872,2]
[423322478,1780056647000,-547.53,0.00027764,7]
[423322490,1780056647000,-996.0,0.00027856,4]
[423322474,1780056647000,-5174.22,0.00027711,7]
[423322463,1780056647000,-300.0,0.00027699,6]
[423322476,1780056647000,-389.1,0.00027734,2]
[423322504,1780056647000,-442.79799973,0.00027903,30]
[423322450,1780056647000,-1020.0,0.00027559,30]
[423322452,1780056647000,-304.0,0.00027559,30]
[423322451,1780056647000,-200.0,0.00027559,30]
[423322456,1780056647000,-547.53,0.00027611,30]
[423322453,1780056647000,-547.53,0.00027581,7]
[423322454,1780056647000,-389.1,0.00027582,7]
[423322460,1780056647000,-547.53,0.00027672,7]
[423322459,1780056647000,-389.1,0.00027643,2]
[423322455,1780056647000,-155.51,0.000276,7]
[423322457,1780056647000,-389.1,0.00027612,30]
[423322458,1780056647000,-547.53,0.00027642,2]
[423322461,1780056647000,-389.1,0.00027673,7]
[423322462,1780056647000,-300.0,0.00027699,6]
[423322466,1780056647000,-290.0,0.00027699,5]
[423322470,1780056647000,-8393.79,0.00027711,7]
[423322465,1780056647000,-300.0,0.00027699,6]
[423322467,1780056647000,-547.53,0.00027703,30]
[423322469,1780056647000,-4091.61,0.00027711,7]
[423322468,1780056647000,-389.1,0.00027704,30]
[423322464,1780056647000,-300.0,0.00027699,6]
[423322473,1780056647000,-2868.86,0.00027711,7]
[423322471,1780056647000,-6425.53,0.00027711,7]
[423322472,1780056647000,-1923.23,0.00027711,7]
[423322475,1780056647000,-547.53,0.00027733,2]
[423322477,1780056647000,-389.1,0.00027764,7]
[423322502,1780056647000,-50339.39,0.000279,14]
[423322511,1780056647000,-150.0,0.00027981,2]
[423322506,1780056647000,-389.1,0.00027917,2]
[423322537,1780056647000,-200.0,0.00028082,2]
[423322536,1780056647000,-383.0,0.00028074,30]
[423322538,1780056647000,-150.0,0.00028082,2]
[423322539,1780056647000,-213.0,0.00028082,2]
[423322540,1780056647000,-302.46,0.00028082,2]
[423322541,1780056647000,-356.73298615,0.00028082,2]
[423322542,1780056647000,-1000.0,0.00028082,120]
[423322548,1780056647000,-2500.0,0.00028082,120]
[423322543,1780056647000,-2500.0,0.00028082,120]
[423322547,1780056647000,-1000.0,0.00028082,3]
[423322544,1780056647000,-1000.0,0.00028082,3]
[423322534,1780056647000,-400.0,0.00028074,30]
[423322545,1780056647000,-1000.0,0.00028082,120]
[423322549,1780056647000,-1000.0,0.00028082,3]
[423322551,1780056647000,-3137.0,0.00028082,120]
[423322553,1780056647000,-389.1,0.00028099,2]
[423322552,1780056647000,-1000.0,0.00028082,3]
[423322554,1780056647000,-547.53,0.00028099,2]
[423322556,1780056647000,-401.69008289,0.00028111,2]
[423322557,1780056647000,-389.27,0.0002813,7]
[423322558,1780056647000,-547.59,0.0002813,7]
[423322560,1780056647000,-4091.61,0.00028194,7]
[423322555,1780056647000,-2151.0,0.000281,7]
[423322505,1780056647000,-547.53,0.00027916,2]
[423322550,1780056647000,-1000.0,0.00028082,3]
[423322533,1780056647000,-400.0,0.00028074,30]
[423322546,1780056647000,-2500.0,0.00028082,120]
[423322535,1780056647000,-400.0,0.00028074,30]
[423322507,1780056647000,-389.1,0.00027947,7]
[423322531,1780056647000,-400.0,0.00028074,30]
[423322509,1780056647000,-389.1,0.00027977,30]
[423322510,1780056647000,-547.53,0.00027977,30]
[423322559,1780056647000,-2318.0,0.00028187,3]
[423322508,1780056647000,-547.53,0.00027947,7]
[423322513,1780056647000,-200.0,0.00028,7]
[423322514,1780056647000,-561.57,0.00028,2]
[423322515,1780056647000,-200.0,0.00028,7]
[423322516,1780056647000,-3699.58,0.00028,7]
[423322517,1780056647000,-6580.74,0.00028,7]
[423322518,1780056647000,-389.1,0.00028008,2]
[423322521,1780056647000,-4091.61,0.00028033,30]
[423322512,1780056647000,-215.5484138,0.00028,10]
[423322530,1780056647000,-547.53,0.00028069,30]
[423322519,1780056647000,-547.53,0.00028008,2]
[423322529,1780056647000,-389.1,0.00028069,30]
[423322528,1780056647000,-547.53,0.00028038,7]
[423322526,1780056647000,-5174.22,0.00028033,30]
[423322524,1780056647000,-1923.23,0.00028033,30]
[423322527,1780056647000,-389.1,0.00028038,7]
[423322523,1780056647000,-6425.53,0.00028033,30]
[423322520,1780056647000,-5645.69928717,0.00028023,2]
[423322525,1780056647000,-2868.86,0.00028033,30]
[423322522,1780056647000,-8393.79,0.00028033,30]
[423322532,1780056647000,-400.0,0.00028074,30]
[423322599,1780056648000,-208.83692504,0.00028493,7]
[423322596,1780056648000,-190.33090994,0.00028493,7]
[423322600,1780056648000,-165.28783929,0.00028493,7]
[423322597,1780056648000,-170.4118041,0.00028493,7]
[423322598,1780056648000,-152.74726053,0.00028493,7]
[423322595,1780056648000,-187.75190103,0.00028493,7]
[423322588,1780056648000,-153.44131016,0.00028484,7]
[423322594,1780056648000,-195.33746677,0.00028484,7]
[423322593,1780056648000,-154.52712352,0.00028484,7]
[423322602,1780056648000,-206.79353255,0.00028493,5]
[423322591,1780056648000,-207.45988435,0.00028484,7]
[423322601,1780056648000,-197.14485582,0.00028493,7]
[423322615,1780056648000,-182.0,0.00028503,120]
[423322605,1780056648000,-191.11977874,0.00028493,7]
[423322603,1780056648000,-371.90258911,0.00028493,7]
[423322607,1780056648000,-150.49798279,0.00028493,7]
[423322606,1780056648000,-288.41854234,0.00028493,7]
[423322609,1780056648000,-179.45840051,0.00028493,7]
[423322608,1780056648000,-202.25494561,0.00028493,7]
[423322611,1780056648000,-152.28468194,0.00028493,7]
[423322610,1780056648000,-158.62281654,0.00028493,7]
[423322612,1780056648000,-205.81059355,0.00028493,7]
[423322613,1780056648000,-177.01374539,0.00028493,7]
[423322592,1780056648000,-158.76099832,0.00028484,7]
[423322604,1780056648000,-190.63823032,0.00028493,7]
[423322590,1780056648000,-217.44533831,0.00028484,7]
[423322562,1780056648000,-6425.53,0.00028194,7]
[423322586,1780056648000,-153.02264896,0.00028484,7]
[423322561,1780056648000,-8393.79,0.00028194,7]
[423322616,1780056648000,-182.0,0.00028503,120]
[423322563,1780056648000,-1923.23,0.00028194,7]
[423322564,1780056648000,-2868.86,0.00028194,7]
[423322565,1780056648000,-5174.22,0.00028194,7]
[423322570,1780056648000,-1136.38,0.00028345,7]
[423322567,1780056648000,-644.79446245,0.00028253,2]
[423322568,1780056648000,-804.17102365,0.00028253,2]
[423322569,1780056648000,-4414.4,0.00028267,2]
[423322566,1780056648000,-200.0,0.000282,20]
[423322571,1780056648000,-1073.45,0.00028345,7]
[423322572,1780056648000,-1172.31,0.00028345,7]
[423322589,1780056648000,-156.73145998,0.00028484,7]
[423322573,1780056648000,-874.0,0.00028345,7]
[423322575,1780056648000,-8393.79,0.00028355,2]
[423322576,1780056648000,-6425.53,0.00028355,2]
[423322578,1780056648000,-2868.86,0.00028355,2]
[423322577,1780056648000,-1923.23,0.00028355,2]
[423322583,1780056648000,-50339.39,0.000284,14]
[423322584,1780056648000,-155.51,0.000284,7]
[423322580,1780056648000,-355.10256342,0.00028356,2]
[423322582,1780056648000,-253.2423139,0.000284,20]
[423322579,1780056648000,-5174.22,0.00028355,2]
[423322581,1780056648000,-200.0,0.00028363,2]